fUST/lending_fUST_20251024
["ID","MTS","AMOUNT","RATE_DAILY","PERIOD"]
[392264745,1761292135463,5000.0,0.00019198,2]
[392264746,1761292144872,1486.18198877,0.00019198,2]
[392264747,1761292144968,3513.81801123,0.00019198,2]
[392264748,1761292148708,160.0,0.000241,59]
[392264752,1761292198647,240.3551693,0.00018592,2]
[392264753,1761292205433,2000.0,0.0002,7]
[392264790,1761292232733,-322.5172017,0.00019313,2]
[392264792,1761292232744,-4677.4827983,0.00019313,2]
[392264794,1761292232753,-470.12309119,0.00019411,2]
[392264796,1761292232763,-800.0,0.00019508,2]
[392264798,1761292232773,-188.95482119,0.00019571,2]
[392264801,1761292232784,-796.800055,0.00019571,2]
[392264803,1761292232795,-214.24512381,0.00019571,2]
[392264805,1761292232804,-2437.78115758,0.00019572,2]
[392264858,1761292238455,-800.57707726,0.00019572,2]
[392264860,1761292238465,-31.31366823,0.00019573,2]
[392264864,1761292238511,-1214.37901965,0.00019573,2]
[392264865,1761292238521,-300.0,0.00019598,2]
[392264866,1761292238530,-300.0,0.00019598,2]
[392264867,1761292238540,-300.0,0.00019598,2]
[392264868,1761292238550,-300.0,0.00019598,2]
[392264869,1761292238559,-300.0,0.00019598,2]
[392264870,1761292238569,-152.23917125,0.00019599,2]
[392264871,1761292238578,-194.62528527,0.00019599,2]
[392264872,1761292238590,-291.82821232,0.00019599,2]
[392264873,1761292238599,-1200.0,0.00019599,2]
[392264874,1761292238610,-13.81672738,0.000196,2]
[392264875,1761292238634,-6830.1054815,0.000196,2]
[392264933,1761292240924,-64055.7785832,0.000196,2]
[392267431,1761292267964,1529.4999154,0.00030136,120]
[392267638,1761292417455,6260.0,0.0002,6]
[392267639,1761292443111,5000.0,0.0002011,6]
[392267640,1761292466035,5000.0,0.00019,2]
[392267641,1761292470802,193.1049761,0.00018617,2]
[392267642,1761292473911,4064.8334853,0.00019,2]
[392267643,1761292551397,1092.29395327,0.0003,120]
[392267644,1761292606356,250.0,0.00018333,2]
[392267645,1761292626156,-2793.12256921,0.00019096,2]
[392267646,1761292626269,-2013.67443428,0.00019196,2]
[392267647,1761292626693,-504.27835564,0.00019384,2]
[392267648,1761292626805,-300.0,0.00019499,2]
[392267649,1761292626913,-2158.9054899,0.000195,2]
[392267650,1761292627007,-996.55415028,0.000195,2]
[392267651,1761292627383,-2614.40103438,0.000195,2]
[392267652,1761292627476,-151.0,0.00019588,2]
[392267653,1761292627568,-151.0,0.00019588,2]
[392267654,1761292627664,-152.96043574,0.00019588,2]
[392267655,1761292627758,-151.0,0.00019588,2]
[392267656,1761292627859,-151.0,0.00019588,2]
[392267657,1761292627962,-151.0,0.00019588,2]
[392267658,1761292628063,-151.0,0.00019588,2]
[392267659,1761292628165,-151.0,0.00019588,2]
[392267660,1761292628500,-221.88543242,0.00019588,2]
[392267661,1761292628597,-151.0,0.00019588,2]
[392267662,1761292628707,-151.0,0.00019588,2]
[392267663,1761292628811,-151.0,0.00019588,2]
[392267664,1761292628910,-151.0,0.00019588,2]
[392267665,1761292629014,-151.0,0.00019588,2]
[392267666,1761292629114,-176.27623664,0.00019588,2]
[392267667,1761292639182,-44.96372164,0.00019588,2]
[392267668,1761292639291,-1000.0,0.00019588,2]
[392267669,1761292639376,-1000.0,0.00019588,2]
[392267670,1761292639463,-1000.0,0.00019588,2]
[392267671,1761292639554,-1000.0,0.00019588,2]
[392267672,1761292639641,-910.08255672,0.00019588,2]
[392267673,1761292640025,-89.91744328,0.00019588,2]
[392267674,1761292640129,-187.58760619,0.00019588,2]
[392267675,1761292640251,-151.0,0.00019588,2]
[392267676,1761292640354,-353.52,0.0001959,3]
[392267677,1761292640464,-176.76,0.0001959,3]
[392267678,1761292640570,-530.3,0.0001959,3]
[392267679,1761292640662,-1200.0,0.00019598,2]
[392267680,1761292640759,-300.0,0.00019598,2]
[392267681,1761292640851,-300.0,0.00019598,2]
[392267682,1761292640945,-300.0,0.00019598,2]
[392267683,1761292641036,-1200.0,0.00019598,2]
[392267684,1761292645497,-500.0,0.00019599,2]
[392267685,1761292645594,-183.68904625,0.00019599,2]
[392267686,1761292645688,-500.0,0.00019599,2]
[392267687,1761292645790,-500.0,0.00019599,2]
[392267688,1761292645895,-500.0,0.00019599,2]
[392267689,1761292646004,-500.0,0.00019599,2]
[392267690,1761292646105,-398.52713703,0.00019599,2]
[392267691,1761292646210,-500.0,0.00019599,2]
[392267692,1761292646311,-500.0,0.00019599,2]
[392267693,1761292646411,-351.14409747,0.00019599,2]
[392267694,1761292646507,-166.66,0.00019599,2]
[392267695,1761292647932,-3230.45170131,0.000196,2]
[392267696,1761292651156,-10000.01,0.000196,2]
[392267697,1761292651389,-10000.01,0.000196,2]
[392267698,1761292673182,5000.0,0.00019096,2]
[392267699,1761292677474,196.0,0.00016,2]
[392267700,1761292678049,196.0,0.0001705,2]
[392267701,1761292678154,364.70085055,0.000181,2]
[392267702,1761292682568,4038.18531428,0.00019096,2]
[392267703,1761292771069,3858.8731527,0.00018649,2]
[392267704,1761292776592,5777.8743774,0.00018594,2]
[392267705,1761292796944,196.0,0.00016,2]
[392267706,1761292797460,196.0,0.00016091,2]
[392267707,1761292797541,196.0,0.00016183,2]
[392267708,1761292797621,196.0,0.00016274,2]
[392267709,1761292797707,196.0,0.00016365,2]
[392267710,1761292797787,196.0,0.00016457,2]
[392267711,1761292798044,196.0,0.00016548,2]
[392267712,1761292798232,196.0,0.00016639,2]
[392267713,1761292798612,196.0,0.0001673,2]
[392267714,1761292798770,196.0,0.00016822,2]
[392267715,1761292798945,196.0,0.00016913,2]
[392267716,1761292799094,196.0,0.00017004,2]
[392267717,1761292799242,196.0,0.00017096,2]
[392267718,1761292799388,196.0,0.00017187,2]
[392267719,1761292799538,196.0,0.00017278,2]
[392267720,1761292799687,196.0,0.0001737,2]
[392267721,1761292800030,196.0,0.00017461,2]
[392267722,1761292800135,196.0,0.00017552,2]
[392267723,1761292800244,196.0,0.00017643,2]
[392267724,1761292800406,196.0,0.00017735,2]
[392267725,1761292800562,196.0,0.00017826,2]
[392267726,1761292800725,106.1356226,0.00017917,2]
[392267727,1761292800805,89.8643774,0.00017917,2]
[392267728,1761292800888,196.0,0.00018009,2]
[392267729,1761292801033,382.38130439,0.000181,2]
[392267730,1761292806180,978.67021132,0.00019,2]
[392267731,1761292865236,5000.0,0.00019,2]
[392267732,1761292887946,3353.09410689,0.00019,2]
[392267733,1761292888051,1646.90589311,0.00019,2]
[392267735,1761292893639,3339.52478403,0.0001899,2]
[392267736,1761292910611,5000.0,0.00019,2]
[392267737,1761292917486,13.57932286,0.00016,2]
[392267738,1761292917568,182.42067714,0.00016,2]
[392267739,1761292917660,196.0,0.00016175,2]
[392267740,1761292917810,196.0,0.0001635,2]
[392267741,1761292917968,196.0,0.00016525,2]
[392267742,1761292918146,196.0,0.000167,2]
[392267743,1761292918411,196.0,0.00016875,2]
[392267744,1761292918578,196.0,0.0001705,2]
[392267745,1761292918754,196.0,0.00017225,2]
[392267746,1761292918919,196.0,0.000174,2]
[392267747,1761292919079,196.0,0.00017575,2]
[392267748,1761292919243,196.0,0.0001775,2]
[392267749,1761292919616,196.0,0.00017925,2]
[392267750,1761292919786,309.81219368,0.000181,2]
[392267751,1761292934581,5000.0,0.00019,2]
[392267752,1761292941949,2351.77712918,0.00019,2]
[392267753,1761292942045,1648.52478441,0.00019,2]
[392267755,1761292957761,5000.0,0.00019,2]
[392267756,1761292980900,3351.48521559,0.00019,2]
[392267757,1761292980997,1648.51478441,0.00019,2]
[392267758,1761293003433,4959.23277131,0.00019,2]
[392267759,1761293006252,1444.7787346,0.00018594,2]
[392267760,1761293012700,160.0,0.000241,59]
[392267761,1761293043752,300.0,0.00018999,2]
[392267762,1761293044523,214.36076563,0.00018761,2]
[392267763,1761293047499,160.0,0.000241,59]
[392267764,1761293053109,160.0,0.000241,59]
[392267765,1761293067836,160.0,0.000241,59]
[392267766,1761293205819,1000.0,0.00030137,120]
[392267767,1761293212738,1433.12294405,0.00018992,2]
[392267768,1761293212823,567.43438474,0.00018992,2]
[392267769,1761293222178,-415.13565222,0.00019,2]
[392267770,1761293222269,-502.96470934,0.00019019,2]
[392267771,1761293222347,-1200.0,0.00019037,2]
[392267772,1761293222445,-300.0,0.00019177,2]
[392267773,1761293222530,-200.0,0.00019178,2]
[392267774,1761293222619,-2231.64485238,0.00019178,2]
[392267775,1761293223136,-300.51957212,0.00019178,2]
[392267776,1761293223237,-2000.55732879,0.00019288,2]
[392267777,1761293223341,-168.0,0.00019336,2]
[392267778,1761293223441,-797.24332024,0.000195,2]
[392267779,1761293223532,-1439.2703266,0.000195,2]
[392267780,1761293223626,-88.8289045,0.00019573,2]
[392267781,1761293224077,-411.1710955,0.00019573,2]
[392267782,1761293224175,-500.0,0.00019573,2]
[392267783,1761293224275,-500.0,0.00019573,2]
[392267784,1761293224375,-262.51773703,0.00019573,2]
[392267785,1761293224469,-500.0,0.00019573,2]
[392267786,1761293224569,-221.88543242,0.00019588,2]
[392267787,1761293224657,-151.0,0.00019588,2]
[392267788,1761293224765,-180.34,0.0001959,3]
[392267789,1761293224879,-541.06,0.0001959,3]
[392267790,1761293224979,-500.0,0.00019594,2]
[392267791,1761293225080,-500.0,0.00019594,2]
[392267792,1761293225177,-500.0,0.00019594,2]
[392267793,1761293225286,-500.0,0.00019594,2]
[392267794,1761293225386,-500.0,0.00019594,2]
[392267795,1761293225481,-500.0,0.00019594,2]
[392267796,1761293225570,-500.0,0.00019594,2]
[392267797,1761293225663,-500.0,0.00019594,2]
[392267798,1761293225755,-500.0,0.00019594,2]
[392267799,1761293225846,-500.0,0.00019594,2]
[392267800,1761293225943,-500.0,0.00019594,2]
[392267801,1761293226037,-352.20669023,0.00019594,2]
[392267802,1761293226128,-500.0,0.00019594,2]
[392267803,1761293226769,-300.0,0.00019499,2]
[392267804,1761293226854,-500.0,0.00019594,2]
[392267805,1761293226942,-500.0,0.00019594,2]
[392267806,1761293227034,-565.49760108,0.00019594,2]
[392267807,1761293227251,-500.0,0.00019594,2]
[392267808,1761293227387,-500.0,0.00019594,2]
[392267809,1761293227480,-520.52266401,0.00019594,2]
[392267810,1761293227573,-500.0,0.00019594,2]
[392267811,1761293227661,-500.0,0.00019594,2]
[392267812,1761293227753,-500.0,0.00019594,2]
[392267813,1761293227971,-500.0,0.00019594,2]
[392267814,1761293228071,-500.0,0.00019594,2]
[392267815,1761293228180,-500.0,0.00019594,2]
[392267816,1761293228277,-500.0,0.00019594,2]
[392267817,1761293228380,-500.0,0.00019594,2]
[392267818,1761293228479,-500.0,0.00019594,2]
[392267819,1761293228571,-500.0,0.00019594,2]
[392267820,1761293228659,-500.0,0.00019594,2]
[392267821,1761293228757,-500.0,0.00019594,2]
[392267822,1761293228851,-500.0,0.00019594,2]
[392267823,1761293229086,-500.0,0.00019594,2]
[392267824,1761293229183,-500.0,0.00019594,2]
[392267825,1761293229274,-500.0,0.00019594,2]
[392267826,1761293229368,-500.0,0.00019594,2]
[392267827,1761293229460,-500.0,0.00019594,2]
[392267828,1761293229553,-500.0,0.00019594,2]
[392267829,1761293229639,-500.0,0.00019594,2]
[392267830,1761293229720,-500.0,0.00019594,2]
[392267831,1761293229804,-500.0,0.00019594,2]
[392267832,1761293229888,-500.0,0.00019594,2]
[392267833,1761293230341,-569.16751665,0.00019594,2]
[392267834,1761293230434,-500.0,0.00019594,2]
[392267835,1761293230527,-500.0,0.00019594,2]
[392267836,1761293230620,-500.0,0.00019594,2]
[392267837,1761293230712,-500.0,0.00019594,2]
[392267838,1761293230804,-500.0,0.00019594,2]
[392267839,1761293230896,-500.0,0.00019594,2]
[392267840,1761293230989,-500.0,0.00019594,2]
[392267841,1761293231101,-500.0,0.00019594,2]
[392267842,1761293231195,-361.6749667,0.00019594,2]
[392267843,1761293231928,-138.3250333,0.00019594,2]
[392267844,1761293232021,-500.0,0.00019594,2]
[392267845,1761293232115,-500.0,0.00019594,2]
[392267846,1761293232212,-500.0,0.00019594,2]
[392267847,1761293232309,-500.0,0.00019594,2]
[392267848,1761293232404,-500.0,0.00019594,2]
[392267849,1761293232495,-500.0,0.00019594,2]
[392267850,1761293232587,-500.0,0.00019594,2]
[392267851,1761293232874,-500.0,0.00019594,2]
[392267852,1761293232973,-500.0,0.00019594,2]
[392267853,1761293233070,-217.44584243,0.00019594,2]
[392267854,1761293233480,-288.46824854,0.00019594,2]
[392267855,1761293233571,-418.65149881,0.00019594,2]
[392267856,1761293233669,-430.0,0.00019594,2]
[392267857,1761293233760,-155.42,0.00019596,2]
[392267858,1761293240080,-500.0,0.00019594,2]
[392267859,1761293240175,-500.0,0.00019594,2]
[392267860,1761293242331,-159.64876612,0.00019,2]
[392267861,1761293244490,-3014.94154534,0.000196,2]
[392267862,1761293245993,-10000.01,0.000196,2]
[392267863,1761293246266,-10000.01,0.000196,2]
[392267864,1761293246548,-10000.01,0.000196,2]
[392267865,1761293246815,-10000.01,0.000196,2]
[392267866,1761293247387,-10000.01,0.000196,2]
[392267867,1761293247710,-10000.01,0.000196,2]
[392267868,1761293250955,-10000.01,0.000196,2]
[392267869,1761293251310,-10000.01,0.000196,2]
[392267870,1761293269103,-168.0,0.00019361,2]
[392267871,1761293269199,-690.0358898,0.000195,2]
[392267872,1761293269311,-1200.0,0.00019599,2]
[392267873,1761293269666,-5883.9382204,0.000196,2]
[392267874,1761293269746,-10000.01,0.000196,2]
[392267875,1761293269846,-10000.01,0.000196,2]
[392267876,1761293269979,-10000.01,0.000196,2]
[392267877,1761293270260,-168.0,0.00019559,2]
[392267878,1761293270471,-9664.01,0.000196,2]
[392267879,1761293270566,-10000.01,0.000196,2]
[392267880,1761293270861,-10000.01,0.000196,2]
[392267881,1761293272153,-10000.01,0.000196,2]
[392267882,1761293272396,-10000.01,0.000196,2]
[392267883,1761293275435,-168.0,0.00019218,2]
[392267884,1761293275647,-9664.01,0.000196,2]
[392267885,1761293275741,-10000.01,0.000196,2]
[392267886,1761293275858,-10000.01,0.000196,2]
[392267887,1761293276005,-10000.01,0.000196,2]
[392267888,1761293276266,-10000.01,0.000196,2]
[392267889,1761293276515,-10000.01,0.000196,2]
[392267890,1761293276790,-10000.01,0.000196,2]
[392267891,1761293327053,-5000.0,0.00019404,2]
[392267892,1761293327534,-0.01,0.000195,2]
[392267893,1761293327810,-10000.01,0.000195,2]
[392267894,1761293327927,-10000.01,0.000195,2]
[392267895,1761293328023,-10000.01,0.000195,2]
[392267896,1761293328289,-10000.01,0.000195,2]
[392267897,1761293328553,-10000.01,0.000195,2]
[392267898,1761293328816,-10000.01,0.000195,2]
[392267899,1761293329099,-10000.01,0.000195,2]
[392267900,1761293332772,-10000.01,0.0001841,2]
[392267901,1761293338171,-335.5264103,0.0001841,2]
[392267902,1761293338894,-10000.01,0.0001841,2]
[392267903,1761293339179,-1242.5934834,0.0001841,2]
[392267904,1761293339366,-7514.8230332,0.000195,2]
[392267905,1761293339443,-10000.01,0.000195,2]
[392267906,1761293339743,-10000.01,0.000195,2]
[392267907,1761293339948,-10000.01,0.000195,2]
[392267908,1761293340224,-10000.01,0.000195,2]
[392267909,1761293340501,-10000.01,0.000195,2]
[392267910,1761293353953,-300.0,0.00019499,2]
[392267911,1761293354136,-9400.01,0.000195,2]
[392267912,1761293354223,-10000.01,0.000195,2]
[392267913,1761293354504,-10000.01,0.000195,2]
[392267914,1761293354737,-10000.01,0.000195,2]
[392267915,1761293354989,-10000.01,0.000195,2]
[392267916,1761293355251,-10000.01,0.000195,2]
[392267917,1761293355481,-10000.01,0.000195,2]
[392267918,1761293360018,-418.68085865,0.00019499,2]
[392267919,1761293360217,-9162.6482827,0.000195,2]
[392267920,1761293360319,-10000.01,0.000195,2]
[392267921,1761293360568,-10000.01,0.000195,2]
[392267922,1761293360836,-10000.01,0.000195,2]
[392267923,1761293361095,-10000.01,0.000195,2]
[392267924,1761293361338,-5000.0,0.00019305,2]
[392267925,1761293361497,-0.01,0.000195,2]
[392267926,1761293361578,-10000.01,0.000195,2]
[392267933,1761293400559,322.5172017,0.00019,2]
[392267949,1761293432008,-3651.38314616,0.00019305,2]
[392267951,1761293432017,-300.0,0.00019499,2]
[392267953,1761293432028,-1200.0,0.00019499,2]
[392267955,1761293432037,-300.0,0.00019499,2]
[392267957,1761293432047,-300.0,0.00019499,2]
[392267959,1761293432056,-300.0,0.00019499,2]
[392267961,1761293432066,-66896.47265208,0.000195,2]
[392267963,1761293432078,-542.043659,0.000195,2]
[392268034,1761293440064,-273.2206049,0.00019499,2]
[392268035,1761293440077,-500.0,0.00019499,2]
[392268036,1761293440088,-500.0,0.00019499,2]
[392268037,1761293440100,-500.0,0.00019499,2]
[392268038,1761293440113,-500.0,0.00019499,2]
[392268039,1761293440125,-500.0,0.00019499,2]
[392268040,1761293440137,-500.0,0.00019499,2]
[392268041,1761293440149,-500.0,0.00019499,2]
[392268042,1761293440160,-500.0,0.00019499,2]
[392268043,1761293440172,-403.17313395,0.00019499,2]
[392268044,1761293440184,-500.0,0.00019499,2]
[392268045,1761293440195,-500.0,0.00019499,2]
[392268046,1761293440207,-500.0,0.00019499,2]
[392268047,1761293440219,-500.0,0.00019499,2]
[392268048,1761293440232,-500.0,0.00019499,2]
[392268049,1761293440245,-500.0,0.00019499,2]
[392268050,1761293440257,-500.0,0.00019499,2]
[392268051,1761293440268,-500.0,0.00019499,2]
[392268052,1761293440284,-500.0,0.00019499,2]
[392268053,1761293440295,-500.0,0.00019499,2]
[392268054,1761293440307,-183.60626114,0.00019499,2]
[392268107,1761293476484,1360.837003,0.00013699,2]
[392268108,1761293489864,713.76614782,0.00019,2]
[392268109,1761293512629,500.0,0.00019,2]
[392268110,1761293533302,7102.88964748,0.0001841,2]
[392268111,1761293533389,40.09616782,0.0001841,2]
[392268112,1761293535459,745.12938285,0.00019,2]
[392268113,1761293557478,3000.0,0.00019,2]
[392268114,1761293573774,-300.0,0.00019,2]
[392268115,1761293573886,-300.0,0.00019,2]
[392268116,1761293573981,-300.0,0.00019,2]
[392268117,1761293574086,-300.0,0.00019,2]
[392268118,1761293579841,300.0,0.00019,2]
[392268119,1761293580362,2807.51927034,0.00019,2]
[392268120,1761293585873,4492.49072966,0.00019,2]
[392268121,1761293585966,5207.50927034,0.00019,2]
[392268122,1761293588834,-500.0,0.00019304,2]
[392268123,1761293588930,-1521.63186919,0.00019318,2]
[392268124,1761293589025,-512.12189756,0.00019401,2]
[392268125,1761293589123,-687.0,0.00019471,2]
[392268126,1761293589223,-300.0,0.00019472,2]
[392268127,1761293589952,-0.01,0.00019473,2]
[392268128,1761293590090,-0.02,0.00019473,2]
[392268129,1761293590456,-0.04,0.00019473,2]
[392268130,1761293590622,-6388.15484719,0.00019473,2]
[392268131,1761293590733,-3611.77515281,0.00019473,2]
[392268132,1761293590832,-1200.0,0.00019497,2]
[392268133,1761293590925,-115.8783276,0.00019498,2]
[392268134,1761293591030,300.0,0.00019,2]
[392268135,1761293591241,-144.70303918,0.00019498,2]
[392268136,1761293591340,-500.0,0.00019498,2]
[392268137,1761293591436,-500.0,0.00019498,2]
[392268138,1761293591540,-500.0,0.00019498,2]
[392268139,1761293591636,-500.0,0.00019498,2]
[392268140,1761293591725,-500.0,0.00019498,2]
[392268141,1761293591814,-500.0,0.00019498,2]
[392268142,1761293592102,-650.59596909,0.00019498,2]
[392268143,1761293592199,-500.0,0.00019498,2]
[392268144,1761293592289,-500.0,0.00019498,2]
[392268145,1761293592561,-500.0,0.00019498,2]
[392268146,1761293592651,-500.0,0.00019498,2]
[392268147,1761293592741,-242.67371837,0.00019498,2]
[392268148,1761293592830,-500.0,0.00019498,2]
[392268149,1761293592921,-500.0,0.00019498,2]
[392268150,1761293593017,-500.0,0.00019498,2]
[392268151,1761293593117,-500.0,0.00019498,2]
[392268152,1761293593216,-638.17822237,0.00019498,2]
[392268153,1761293593316,-500.0,0.00019498,2]
[392268154,1761293593413,-500.0,0.00019498,2]
[392268155,1761293595781,-293.53365586,0.00019,2]
[392268156,1761293595879,-6.46634414,0.00019,2]
[392268157,1761293595889,-231.83977438,0.00019498,2]
[392268158,1761293597646,-248.92286841,0.00019498,2]
[392268159,1761293597740,-500.0,0.00019498,2]
[392268160,1761293597841,-500.0,0.00019498,2]
[392268161,1761293597954,-500.0,0.00019498,2]
[392268162,1761293598056,-500.0,0.00019498,2]
[392268163,1761293598158,-500.0,0.00019498,2]
[392268164,1761293598257,-500.0,0.00019498,2]
[392268165,1761293598351,-500.0,0.00019498,2]
[392268166,1761293598446,-377.70386004,0.00019498,2]
[392268167,1761293598538,-500.0,0.00019498,2]
[392268168,1761293598636,-246.7565431,0.00019498,2]
[392268169,1761293599005,-253.2434569,0.00019498,2]
[392268170,1761293599102,-500.0,0.00019498,2]
[392268171,1761293599214,-500.0,0.00019498,2]
[392268172,1761293599321,-500.0,0.00019498,2]
[392268173,1761293599425,-500.0,0.00019498,2]
[392268174,1761293599559,-500.0,0.00019498,2]
[392268175,1761293599658,-500.0,0.00019498,2]
[392268176,1761293599758,-500.0,0.00019498,2]
[392268177,1761293599856,-500.0,0.00019498,2]
[392268178,1761293599954,-500.0,0.00019498,2]
[392268179,1761293600312,-500.0,0.00019498,2]
[392268180,1761293600413,-500.0,0.00019498,2]
[392268181,1761293600516,-500.0,0.00019498,2]
[392268182,1761293600616,-500.0,0.00019498,2]
[392268183,1761293600714,-500.0,0.00019498,2]
[392268184,1761293600988,-500.0,0.00019498,2]
[392268185,1761293601084,-500.0,0.00019498,2]
[392268186,1761293601183,-500.0,0.00019498,2]
[392268187,1761293601279,-376.06905849,0.00019498,2]
[392268188,1761293601372,-500.0,0.00019498,2]
[392268189,1761293601900,-500.0,0.00019498,2]
[392268190,1761293601999,-500.0,0.00019498,2]
[392268191,1761293602098,-500.0,0.00019498,2]
[392268192,1761293602194,-500.0,0.00019498,2]
[392268193,1761293602296,-500.0,0.00019498,2]
[392268194,1761293602388,-500.0,0.00019498,2]
[392268195,1761293602477,-500.0,0.00019498,2]
[392268196,1761293602568,-500.0,0.00019498,2]
[392268197,1761293602660,-500.0,0.00019498,2]
[392268198,1761293602751,-500.0,0.00019498,2]
[392268199,1761293602946,-500.0,0.00019498,2]
[392268200,1761293603043,-500.0,0.00019498,2]
[392268201,1761293603147,-397.13804828,0.00019498,2]
[392268202,1761293603250,-500.0,0.00019498,2]
[392268203,1761293603350,-500.0,0.00019498,2]
[392268204,1761293603457,-500.0,0.00019498,2]
[392268205,1761293603559,-500.0,0.00019498,2]
[392268206,1761293603653,-500.0,0.00019498,2]
[392268207,1761293603747,-500.0,0.00019498,2]
[392268208,1761293603840,-500.0,0.00019498,2]
[392268209,1761293604242,-500.0,0.00019498,2]
[392268210,1761293604339,-500.0,0.00019498,2]
[392268211,1761293604433,-500.0,0.00019498,2]
[392268212,1761293604533,-250.0,0.00019498,2]
[392268213,1761293604630,-500.0,0.00019498,2]
[392268214,1761293604727,-500.0,0.00019498,2]
[392268215,1761293604822,-500.0,0.00019498,2]
[392268216,1761293604918,-500.0,0.00019498,2]
[392268217,1761293605015,-500.0,0.00019498,2]
[392268218,1761293605114,-500.0,0.00019498,2]
[392268219,1761293605210,-0.01,0.00019498,2]
[392268220,1761293605789,-1008.58670008,0.00019344,2]
[392268221,1761293605883,-499.99,0.00019498,2]
[392268222,1761293605975,-241.22388913,0.00019498,2]
[392268223,1761293606066,-500.0,0.00019498,2]
[392268224,1761293606157,-500.0,0.00019498,2]
[392268225,1761293606244,-500.0,0.00019498,2]
[392268226,1761293606327,-500.0,0.00019498,2]
[392268227,1761293606410,-500.0,0.00019498,2]
[392268228,1761293606501,-411.9825292,0.00019498,2]
[392268229,1761293612009,-300.0,0.00019,2]
[392268230,1761293612019,-47.7195108,0.00019,2]
[392268231,1761293612108,-252.2804892,0.00019,2]
[392268232,1761293612118,-247.7195108,0.000195,2]
[392268233,1761293612213,-500.0,0.000195,2]
[392268234,1761293612293,-411.9825292,0.000195,2]
[392268235,1761293612371,-676.44376318,0.000195,2]
[392268236,1761293612830,-10000.01,0.000195,2]
[392268237,1761293612918,-10000.01,0.000195,2]
[392268238,1761293613012,-10000.01,0.000195,2]
[392268239,1761293613106,-10000.01,0.000195,2]
[392268240,1761293613200,-4647.56656984,0.000195,2]
[392268241,1761293613213,-825.63328812,0.000195,2]
[392268242,1761293614440,-300.0,0.00019,2]
[392268244,1761293625111,168.793832,9.246e-05,2]
[392268247,1761293632425,500.0,0.00019498,2]
[392268248,1761293632518,500.0,0.00019498,2]
[392268249,1761293632612,500.0,0.00019498,2]
[392268250,1761293632709,500.0,0.00019498,2]
[392268251,1761293632797,500.0,0.00019498,2]
[392268252,1761293632885,500.0,0.00019498,2]
[392268253,1761293632979,500.0,0.00019498,2]
[392268254,1761293633075,500.0,0.00019498,2]
[392268255,1761293633174,500.0,0.00019498,2]
[392268256,1761293633268,268.6836098,0.00019498,2]
[392268257,1761293633359,500.0,0.00019498,2]
[392268258,1761293633457,500.0,0.00019498,2]
[392268259,1761293633556,500.0,0.00019498,2]
[392268260,1761293633645,500.0,0.00019498,2]
[392268261,1761293633732,500.0,0.00019498,2]
[392268262,1761293633824,231.3253902,0.00019498,2]